bitfinex/quotes_SOLUSD_20241103
["timestamp","ask_amount","ask_price","bid_price","bid_amount"]
[1730592001763,0.303757,166.1,166.09,54.92982777]
[1730592004357,0.303757,166.1,166.09,31.15294377]
[1730592005464,0.303757,166.1,166.09,54.92982777]
[1730592009576,0.303757,166.1,166.09,34.92982777]
[1730592010450,0.303757,166.1,166.08,11.15294377]
[1730592010662,0.303757,166.1,166.09,20.0]
[1730592011168,0.303757,166.1,166.07,27.31804377]
[1730592011169,0.303757,166.1,166.08,31.15294377]
[1730592011546,0.303757,166.1,166.09,31.15294377]
[1730592011766,0.303757,166.1,166.09,54.92982777]
[1730592017481,0.303757,166.1,166.09,55.02982777]
[1730592017666,0.303757,166.18,166.16,11.15294377]
[1730592017978,0.303757,166.18,166.17,23.776884]
[1730592019279,0.303757,166.18,166.17,34.92982777]
[1730592021864,0.303757,166.18,166.17,23.776884]
[1730592022077,0.303757,166.18,166.15,11.15294377]
[1730592022383,0.303757,166.18,166.16,20.0]
[1730592024064,0.303757,166.18,166.16,11.15294377]
[1730592024382,0.303757,166.18,166.17,34.92982777]
[1730592025577,0.303757,166.18,166.17,54.92982777]
[1730592028186,0.303757,166.18,166.17,43.776884]
[1730592030590,0.303757,166.18,166.17,54.92982777]
[1730592039903,0.303757,166.18,166.17,54.82982577]
[1730592043877,0.303757,166.18,166.15,11.15294377]
[1730592045484,0.303757,166.18,166.16,20.0]
[1730592046004,0.303757,166.18,166.17,54.92982777]
[1730592062890,0.303757,166.18,166.17,55.02982777]
[1730592063095,0.303757,166.18,166.17,71.42842777]
[1730592063405,0.303757,166.18,166.17,71.52842777]
[1730592063606,0.303757,166.27,166.2,0.1]
[1730592063911,3.59904824,166.26,166.25,34.92982777]
[1730592064289,3.59904824,166.26,166.25,54.92982777]
[1730592064912,0.303757,166.27,166.25,54.92982777]
[1730592065108,0.303757,166.27,166.26,54.92982777]
[1730592065311,3.89952928,166.27,166.26,43.776884]
[1730592067313,0.303757,166.27,166.26,43.776884]
[1730592067990,3.89765848,166.27,166.26,43.776884]
[1730592068514,3.8970487,166.27,166.26,54.92982777]
[1730592068824,0.303757,166.27,166.26,54.92982777]
[1730592073624,0.303757,166.27,166.23,11.15294377]
[1730592073625,3.89442932,166.27,166.23,11.15294377]
[1730592073826,0.303757,166.27,166.23,11.15294377]
[1730592074515,3.59074836,166.26,166.23,11.15294377]
[1730592074853,0.303757,166.27,166.23,11.15294377]
[1730592075013,3.59079671,166.26,166.24,20.0]
[1730592075204,0.303757,166.27,166.24,20.0]
[1730592075404,3.59086945,166.26,166.24,20.0]
[1730592075607,0.303757,166.27,166.24,20.0]
[1730592075919,0.303757,166.27,166.25,34.92982777]
[1730592079424,0.303757,166.27,166.25,23.776884]
[1730592079630,0.303757,166.27,166.24,20.0]
[1730592080501,0.303757,166.27,166.25,23.776884]
[1730592080701,0.303757,166.27,166.24,31.15294377]
[1730592083727,0.303757,166.27,166.25,34.92982777]
[1730592084310,0.303757,166.27,166.25,23.776884]
[1730592089039,0.303757,166.27,166.24,31.15294377]
[1730592089903,0.303757,166.27,166.24,43.776884]
[1730592091010,0.303757,166.27,166.24,54.92982777]
[1730592093729,0.303757,166.27,166.25,11.15294377]
[1730592095309,0.303757,166.27,166.24,54.92982777]
[1730592097028,0.303757,166.27,166.25,11.15294377]
[1730592098637,0.303757,166.27,166.24,54.92982777]
[1730592110546,3.60074839,166.26,166.24,54.92982777]
[1730592110852,0.303757,166.27,166.25,11.15294377]
[1730592111148,0.303757,166.27,166.22,0.1]
[1730592111149,0.303757,166.27,166.26,54.92982777]
[1730592114265,0.303757,166.27,166.24,11.15294377]
[1730592114550,0.303757,166.27,166.25,20.0]
[1730592116749,0.303757,166.27,166.25,11.15294377]
[1730592117152,0.303757,166.27,166.26,20.0]
[1730592117445,3.90332676,166.27,166.26,20.0]
[1730592117961,3.90332676,166.27,166.24,11.15294377]
[1730592118133,0.303757,166.27,166.25,20.0]
[1730592118758,0.303757,166.27,166.25,11.15294377]
[1730592118951,0.303757,166.27,166.26,20.0]
[1730592119150,3.90318195,166.27,166.26,54.92982777]
[1730592119354,0.303757,166.27,166.26,54.92982777]
[1730592122337,0.303757,166.27,166.26,55.02982777]
[1730592123939,0.303757,166.35,166.31,0.1]
[1730592124139,0.303757,166.35,166.33,11.15294377]
[1730592124364,0.303757,166.35,166.34,23.776884]
[1730592124744,0.303757,166.35,166.34,54.92982777]
[1730592125552,3.90079611,166.35,166.34,54.92982777]
[1730592126849,0.303757,166.35,166.34,54.92982777]
[1730592129254,0.303757,166.35,166.34,56.43268071]
[1730592131250,0.303757,166.35,166.34,54.92982777]
[1730592132068,0.303757,166.35,166.34,56.43266584]
[1730592132449,0.303757,166.35,166.34,54.92982777]
[1730592135563,0.303757,166.35,166.32,20.0]
[1730592137257,0.303757,166.35,166.34,20.0]
[1730592137644,15.04310719,166.35,166.33,20.0]
[1730592137845,11.45670077,166.35,166.33,20.0]
[1730592138463,11.45670077,166.35,166.31,20.0]
[1730592139548,11.45670077,166.35,166.3,11.15294377]
[1730592139751,11.45670077,166.35,166.31,23.776884]
[1730592140051,11.45670077,166.35,166.32,1.50304874]
[1730592140254,11.45670077,166.35,166.31,23.776884]
[1730592141552,0.303757,166.35,166.31,23.776884]
[1730592144876,11.45670077,166.35,166.31,23.776884]
[1730592145671,11.45670077,166.35,166.3,23.776884]
[1730592145844,11.45670077,166.35,166.32,23.776884]
[1730592146584,11.45670077,166.35,166.31,20.0]
[1730592146745,11.45670077,166.35,166.32,23.776884]
[1730592148368,3.588564,166.34,166.32,23.776884]
[1730592148560,11.45670077,166.35,166.32,23.776884]
[1730592148750,3.5887251,166.34,166.32,23.776884]
[1730592148950,11.45670077,166.35,166.32,23.776884]
[1730592149152,14.7417008,166.34,166.3,20.0]
[1730592149370,11.15294377,166.34,166.31,25.27993456]
[1730592149572,11.15294377,166.34,166.31,23.776884]
[1730592150556,11.15294377,166.32,166.28,20.0]
[1730592150775,11.15294377,166.31,166.29,23.776884]
[1730592150969,11.15294377,166.31,166.3,1.5031422]
[1730592151163,11.15294377,166.31,166.29,23.776884]
[1730592151360,11.15294377,166.31,166.26,11.15294377]
[1730592152075,11.15294377,166.31,166.27,20.0]
[1730592152769,11.15294377,166.31,166.29,20.0]
[1730592153449,11.15294377,166.32,166.29,20.0]
[1730592153650,3.59071747,166.31,166.29,20.0]
[1730592153853,11.15294377,166.32,166.29,20.0]
[1730592154073,3.59071747,166.31,166.29,20.0]
[1730592154274,11.15294377,166.32,166.29,20.0]
[1730592154976,3.59091789,166.31,166.29,20.0]
[1730592155181,11.15294377,166.31,166.29,20.0]
[1730592157283,11.15294377,166.31,166.23,15.0372]
[1730592157284,11.15294377,166.31,166.25,11.15294377]
[1730592157495,11.15294377,166.31,166.23,15.0372]
[1730592157496,11.15294377,166.29,166.24,11.15294377]
[1730592157655,11.15294377,166.27,166.22,11.15294377]
[1730592158057,11.15294377,166.26,166.21,11.15294377]
[1730592160170,11.15294377,166.26,166.23,23.776884]
[1730592161180,11.15294377,166.24,166.2,20.0]
[1730592161491,11.15294377,166.25,166.22,20.0]
[1730592162185,11.15294377,166.25,166.2,31.15294377]
[1730592162389,15.6896,166.3,166.2,20.0]
[1730592162390,11.15294377,166.24,166.2,20.0]
[1730592162859,11.15294377,166.25,166.2,20.0]
[1730592163258,11.15294377,166.25,166.21,23.776884]
[1730592163655,11.15294377,166.25,166.22,20.0]
[1730592164058,11.15294377,166.24,166.22,20.0]
[1730592164257,11.15294377,166.23,166.19,15.0372]
[1730592164457,6.0146,166.27,166.19,23.776884]
[1730592164458,11.15294377,166.22,166.19,23.776884]
[1730592164761,11.15294377,166.22,166.18,23.776884]
[1730592164961,12.1221,166.27,166.17,23.776884]
[1730592164962,11.15294377,166.21,166.17,23.776884]
[1730592165585,11.15294377,166.22,166.18,20.0]
[1730592165781,11.15294377,166.22,166.19,23.776884]
[1730592166183,11.15294377,166.23,166.19,23.776884]
[1730592167476,11.15294377,166.23,166.18,20.0]
[1730592168578,11.15294377,166.23,166.14,11.15294377]
[1730592168579,11.15294377,166.2,166.14,11.15294377]
[1730592168764,11.15294377,166.19,166.15,20.0]
[1730592168965,11.15294377,166.19,166.14,11.15294377]
[1730592168966,11.15294377,166.19,166.14,20.0]
[1730592169165,11.15294377,166.19,166.13,21.41806401]
[1730592169873,11.15294377,166.19,166.14,34.92982777]
[1730592170676,11.15294377,166.19,166.15,20.0]
[1730592172793,11.15294377,166.2,166.15,20.0]
[1730592173086,11.15294377,166.22,166.17,11.15294377]
[1730592176982,11.15294377,166.22,166.16,34.92982777]
[1730592177304,11.15294377,166.21,166.16,34.92982777]
[1730592179406,11.15294377,166.2,166.16,23.776884]
[1730592180588,44.61177508,166.24,166.15,31.15294377]
[1730592180589,11.15294377,166.19,166.15,20.0]
[1730592180793,11.15294377,166.18,166.15,23.776884]
[1730592181749,11.15294377,166.19,166.15,23.776884]
[1730592181946,44.71177508,166.24,166.15,23.776884]
[1730592181947,11.15294377,166.2,166.15,23.776884]
[1730592183350,11.15294377,166.19,166.15,23.776884]
[1730592183590,11.15294377,166.18,166.14,20.0]
[1730592183724,11.15294377,166.18,166.14,23.776884]
[1730592185772,11.15294377,166.18,166.14,20.0]
[1730592185936,11.15294377,166.17,166.13,10.26512024]
[1730592188647,11.15294377,166.18,166.13,10.26512024]
[1730592191339,11.15294377,166.21,166.16,11.15294377]
[1730592191561,22.3931,166.25,166.16,11.15294377]
[1730592191562,11.15294377,166.22,166.16,11.15294377]
[1730592191852,22.3931,166.25,166.16,11.15294377]
[1730592191853,11.15294377,166.21,166.16,11.15294377]
[1730592192154,11.15294377,166.21,166.15,31.15294377]
[1730592192356,11.15294377,166.21,166.16,23.776884]
[1730592195355,11.15294377,166.19,166.16,23.776884]
[1730592196244,11.15294377,166.2,166.16,23.776884]
[1730592196449,11.15294377,166.2,166.15,31.15294377]
[1730592196652,11.15294377,166.19,166.14,31.15294377]
[1730592196855,11.15294377,166.19,166.16,20.0]
[1730592197058,11.15294377,166.17,166.14,20.0]
[1730592197290,11.15294377,166.17,166.15,6.0186]
[1730592198563,11.15294377,166.17,166.13,20.0]
[1730592199645,11.15294377,166.17,166.13,26.0193]
[1730592200043,11.15294377,166.17,166.07,8.52038837]
[1730592200044,21.2862,166.16,166.07,8.42038837]
[1730592200251,11.15294377,166.09,166.06,0.303757]
[1730592200564,11.15294377,166.1,166.06,0.303757]
[1730592201257,11.15294377,166.1,166.07,6.0212]
[1730592201562,11.15294377,166.09,166.07,6.0212]
[1730592201737,11.15294377,166.08,166.06,0.303757]
[1730592201939,11.15294377,166.07,166.06,0.303757]
[1730592203756,17.17444377,166.07,166.06,0.303757]
[1730592204355,0.1,166.06,165.98,0.303757]
[1730592204552,11.15294377,165.99,165.98,0.303757]
[1730592204939,0.1,166.06,165.98,0.303757]
[1730592204940,11.15294377,166.0,165.98,0.303757]
[1730592207246,11.15294377,165.99,165.98,0.303757]
[1730592211732,11.15294377,166.06,165.99,23.776884]
[1730592211941,11.15294377,166.06,166.01,11.15294377]
[1730592212326,11.15294377,166.06,166.0,11.15294377]
[1730592212515,11.15294377,166.05,166.0,11.15294377]
[1730592212718,11.15294377,166.04,165.99,34.92982777]
[1730592212916,11.15294377,166.06,166.0,11.15294377]
[1730592213117,11.15294377,166.06,166.01,11.15294377]
[1730592213728,17.41460159,166.05,166.01,15.0587]
[1730592214715,17.41460159,166.06,166.01,21.0824]
[1730592215117,17.41460159,166.05,166.01,21.0824]
[1730592215545,17.41460159,166.04,166.01,21.0824]
[1730592215937,17.41460159,166.03,165.98,26.328157]
[1730592216141,6.0219,166.06,165.98,26.328157]
[1730592216142,17.41460159,166.01,165.98,26.328157]
[1730592216520,17.41460159,166.01,165.98,20.303757]
[1730592217327,17.41460159,166.0,165.98,0.303757]
[1730592218145,17.41460159,165.99,165.98,0.303757]
[1730592219023,17.41460159,166.0,165.98,0.303757]
[1730592219948,17.41460159,166.02,165.98,21.390557]
[1730592220249,17.41460159,166.03,165.98,38.80515859]
[1730592220436,17.41460159,166.02,165.98,21.390557]
[1730592221631,17.41460159,165.99,165.98,15.365757]
[1730592222150,17.41460159,166.01,165.98,21.390557]
[1730592223853,17.41460159,166.03,165.98,38.80515859]
[1730592224039,17.41460159,166.04,165.98,38.80515859]
[1730592224241,17.41460159,166.01,165.98,15.365757]
[1730592224749,17.41460159,166.01,165.98,21.390557]
[1730592225445,17.41460159,166.03,165.98,21.390557]
[1730592225652,17.41460159,166.02,165.98,21.390557]
[1730592229433,17.41460159,166.01,165.98,21.390557]
[1730592229741,17.41460159,166.0,165.98,21.390557]
[1730592229943,17.41460159,165.99,165.98,15.365757]
[1730592230528,17.41460159,165.99,165.98,0.303757]
[1730592230747,17.41460159,166.0,165.98,0.303757]
[1730592231251,17.41460159,166.02,165.98,6.328257]
[1730592231435,17.41460159,166.03,165.98,17.71835859]
[1730592231642,17.41460159,166.02,165.98,0.303757]
[1730592231843,17.41460159,166.02,165.98,24.080641]
[1730592232040,17.41460159,166.01,165.98,24.080641]
[1730592232359,17.41460159,166.01,165.98,0.303757]
[1730592232856,17.41460159,166.01,165.98,6.328357]
[1730592235661,11.15068608,166.01,165.98,6.328357]
[1730592236849,11.15068608,165.99,165.98,0.303757]
[1730592238249,17.17508608,165.99,165.98,0.303757]
[1730592241436,17.27508608,165.99,165.98,0.303757]
[1730592242954,17.17508608,165.99,165.98,0.303757]
[1730592248155,11.15068608,165.99,165.98,0.303757]
[1730592248766,17.17508608,165.99,165.98,0.303757]
[1730592249954,17.27508608,165.99,165.98,0.303757]
[1730592250474,17.17508608,165.99,165.98,0.303757]
[1730592250674,17.27508608,165.99,165.98,0.303757]
[1730592250962,17.17508608,165.99,165.98,0.303757]
[1730592253444,17.27508608,165.99,165.98,0.303757]
[1730592256850,17.27508608,165.99,165.9,15.372357]
[1730592256851,11.15068608,165.91,165.9,15.372357]
[1730592257371,11.15068608,165.91,165.9,0.303757]
[1730592258460,11.15068608,165.92,165.9,0.303757]
[1730592258873,11.15068608,165.95,165.9,30.108241]
[1730592259171,11.15068608,165.95,165.9,41.25892708]
[1730592259553,11.15068608,165.95,165.9,30.108241]
[1730592260171,11.15068608,165.95,165.9,45.177541]
[1730592261363,11.15068608,165.94,165.9,45.177541]
[1730592265975,11.15068608,165.93,165.9,45.177541]
[1730592266171,11.15068608,165.92,165.9,39.149941]
[1730592266376,11.15068608,165.92,165.9,45.177641]
[1730592266676,6.0255,165.96,165.9,45.177641]
[1730592266677,11.15068608,165.93,165.9,45.177641]
[1730592267476,11.15068608,165.95,165.9,45.177641]
[1730592271180,11.15068608,165.94,165.9,45.177641]
[1730592271553,11.15068608,165.95,165.9,45.177641]
[1730592274572,11.15068608,165.94,165.9,45.177641]
[1730592274771,11.15068608,165.97,165.92,31.15068608]
[1730592274978,11.15068608,165.97,165.93,23.776884]
[1730592275891,11.15068608,165.97,165.94,6.0262]
[1730592278183,11.15068608,165.98,165.94,21.0918]
[1730592283287,11.15068608,165.99,165.95,23.776884]
[1730592283976,11.15068608,166.0,165.95,23.776884]
[1730592285184,11.15068608,166.0,165.96,6.0255]
[1730592286396,11.15068608,166.0,165.96,21.0893]
[1730592290296,11.15068608,165.99,165.96,21.0893]
[1730592290495,0.1,166.02,165.96,21.0893]
[1730592290496,11.15068608,165.98,165.96,21.0893]
[1730592292984,11.15068608,165.99,165.96,21.0893]
[1730592296196,11.15068608,166.0,165.96,21.0893]
[1730592296399,11.15068608,165.99,165.96,21.0893]
[1730592297682,11.15068608,166.0,165.97,23.776884]
[1730592297890,11.15068608,166.01,165.97,23.776884]
[1730592298997,11.15068608,166.01,165.97,29.801684]
[1730592299897,11.15068608,166.0,165.97,29.801684]
[1730592302902,6.024,166.01,165.96,15.0638]
[1730592303082,11.15068608,165.98,165.96,15.0638]
[1730592305306,11.15068608,165.99,165.96,15.0638]
[1730592305902,11.15068608,165.98,165.96,15.0638]
[1730592306398,11.15068608,165.99,165.96,15.0638]
[1730592306585,11.15068608,165.98,165.96,15.0638]
[1730592307199,0.1,166.01,165.95,6.0259]
[1730592307200,11.15068608,165.97,165.95,23.776884]
[1730592308206,11.15068608,165.98,165.95,23.776884]
[1730592308703,11.15068608,165.98,165.96,6.0255]
[1730592311702,11.15068608,166.0,165.97,23.776884]
[1730592312706,11.15068608,166.03,165.97,34.92757008]
[1730592312891,11.15068608,166.02,165.98,6.0248]
[1730592313100,11.15068608,166.02,165.99,23.776884]
[1730592314196,22.9541,166.07,165.99,23.776884]
[1730592314197,11.15068608,166.03,165.99,23.776884]
[1730592314418,11.15068608,166.04,165.99,34.92757008]
[1730592315206,11.15068608,166.03,166.0,6.024]
[1730592316801,11.15068608,166.04,166.0,6.024]
[1730592317003,11.15068608,166.05,166.02,6.0233]
[1730592317891,11.15068608,166.04,166.02,6.0233]
[1730592318207,11.15068608,166.04,165.99,34.92757008]
[1730592318400,11.15068608,166.04,166.01,23.776884]
[1730592318596,11.15068608,166.02,166.01,23.776884]
[1730592318908,11.15068608,166.03,166.01,23.776884]
[1730592319286,11.15068608,166.03,166.01,29.800384]
[1730592319808,11.15068608,166.02,165.96,60.95307008]
[1730592320016,6.0219,166.06,165.96,49.802384]
[1730592320017,11.15068608,166.0,165.96,49.802384]
[1730592322606,11.15068608,166.01,165.96,49.802384]
[1730592322805,11.15068608,166.01,165.96,60.95307008]
[1730592323310,11.15068608,166.02,165.98,23.776884]
[1730592323901,11.15068608,166.02,165.99,6.0244]
[1730592334999,3.6059147,166.01,165.99,6.0244]
[1730592335194,11.15068608,166.02,165.99,6.0244]
[1730592335419,3.60635221,166.0,165.99,29.801284]
[1730592336113,14.75703829,166.0,165.94,15.7879]
[1730592336325,11.15068608,165.97,165.95,6.0259]
[1730592336617,3.60635221,165.96,165.95,6.0259]
[1730592337199,14.75703829,165.96,165.91,17.67198608]
[1730592337521,3.60635221,165.95,165.92,20.0]
[1730592337729,3.60635221,165.94,165.93,23.776884]
[1730592338020,3.60635221,165.94,165.93,43.776884]
[1730592338205,3.60635221,165.94,165.93,49.803484]
[1730592339315,14.75703829,165.94,165.93,29.803484]
[1730592340229,14.75703829,165.94,165.91,23.776884]
[1730592340398,14.75703829,165.93,165.91,23.776884]
[1730592340598,11.15068608,165.93,165.91,23.776884]
[1730592340824,11.15068608,165.93,165.9,26.331357]
[1730592342303,11.15068608,165.93,165.92,29.803884]
[1730592342504,14.75522589,165.93,165.92,29.803884]
[1730592343308,11.15068608,165.93,165.92,29.803884]
[1730592343718,14.75435678,165.93,165.92,29.803884]
[1730592344538,11.15068608,165.93,165.92,29.803884]
[1730592345517,11.15068608,165.94,165.92,29.803884]
[1730592347316,51.24624432,166.0,165.92,29.803884]
[1730592347317,11.15068608,165.97,165.93,23.776884]
[1730592347510,3.60126585,165.96,165.93,23.776884]
[1730592347714,3.60126585,165.95,165.93,23.776884]
[1730592348029,11.15068608,165.96,165.93,23.776884]
[1730592348211,3.60119958,165.95,165.93,23.776884]
[1730592348415,11.15068608,165.96,165.94,6.0262]
[1730592348624,3.60089577,165.95,165.94,6.0262]
[1730592349235,11.15068608,165.96,165.94,6.0262]
[1730592349528,3.60089588,165.95,165.94,6.0262]
[1730592350508,3.60059681,165.95,165.94,6.0262]
[1730592356317,14.75128289,165.95,165.94,6.0262]
[1730592356714,11.15068608,165.95,165.94,6.0262]
[1730592358628,11.15068608,165.96,165.94,6.0262]
[1730592359025,11.15068608,165.97,165.94,6.0262]
[1730592361340,11.15068608,165.96,165.94,6.0262]
[1730592362056,11.15068608,165.95,165.9,0.303757]
[1730592362269,11.15068608,165.94,165.9,24.080641]
[1730592362549,11.15068608,165.94,165.92,23.776884]
[1730592363864,11.15068608,165.94,165.91,6.0272]
[1730592364036,11.15068608,165.93,165.91,6.0272]
[1730592364846,11.15068608,165.92,165.9,0.303757]
[1730592365150,11.15068608,165.93,165.9,6.331457]
[1730592365661,11.15068608,165.94,165.9,6.331457]
[1730592370447,11.15068608,165.94,165.9,0.303757]
[1730592371459,11.15068608,165.93,165.9,0.303757]
[1730592372375,11.15068608,165.95,165.91,23.776884]
[1730592372786,11.15068608,165.96,165.91,23.776884]
[1730592373580,11.15068608,165.96,165.93,23.776884]
[1730592374187,11.15068608,165.94,165.92,6.027]
[1730592374477,11.15068608,165.93,165.91,6.0273]
[1730592378462,11.15068608,165.94,165.91,6.0273]
[1730592381064,11.15068608,165.93,165.91,6.0273]
[1730592382003,11.15068608,165.93,165.9,0.303757]
[1730592382174,11.15068608,165.93,165.91,23.776884]
[1730592383077,11.15068608,165.93,165.9,6.331357]
[1730592383261,11.15068608,165.92,165.9,0.303757]
[1730592383776,11.15068608,165.92,165.9,6.331457]
[1730592384889,11.15068608,165.93,165.9,0.303757]
[1730592386328,11.15068608,165.95,165.9,0.303757]
[1730592387299,11.15068608,165.94,165.9,0.303757]
[1730592387479,11.15068608,165.94,165.91,23.776884]
[1730592389195,11.15068608,165.95,165.91,23.776884]
[1730592389575,11.15068608,165.95,165.91,6.0273]
[1730592390881,11.15068608,165.97,165.92,23.776884]
[1730592391488,11.15068608,165.96,165.92,23.776884]
[1730592391865,11.15068608,165.96,165.93,6.0266]
[1730592396553,11.15068608,165.95,165.93,6.0266]
[1730592398057,0.1,165.99,165.93,6.0266]
[1730592398058,11.15068608,165.96,165.93,6.0266]
[1730592398954,0.1,165.99,165.94,23.776884]
[1730592398955,11.15068608,165.99,165.94,23.776884]
[1730592399169,11.15068608,166.01,165.96,11.15068608]
[1730592399469,11.15068608,166.02,165.98,23.776884]
[1730592400275,11.15068608,166.02,165.99,6.0244]
[1730592400865,11.15068608,166.03,165.99,6.0244]
[1730592401974,11.15068608,166.04,166.0,23.776884]
[1730592402353,17.17288608,166.06,166.0,34.92757008]
[1730592402656,11.15068608,166.04,166.0,23.776884]
[1730592403554,11.15068608,166.04,165.99,23.776884]
[1730592404878,11.15068608,166.01,165.98,23.776884]
[1730592405056,11.15068608,166.0,165.98,23.776884]
[1730592405879,11.15068608,166.01,165.98,23.776884]
[1730592406374,11.15068608,166.01,165.93,15.2139]
[1730592406375,11.15068608,165.99,165.93,26.36458608]
[1730592406578,11.15068608,165.99,165.94,23.776884]
[1730592406976,11.15068608,165.99,165.93,26.36458608]
[1730592407177,11.15068608,166.0,165.94,11.15068608]
[1730592408273,11.15068608,166.0,165.95,23.776884]
[1730592408875,11.15068608,165.99,165.95,23.776884]
[1730592409989,11.15068608,165.99,165.94,23.776884]
[1730592410988,11.15068608,165.99,165.94,34.92757008]
[1730592411678,3.59790872,165.98,165.94,34.92757008]
[1730592411883,11.15068608,165.99,165.94,34.92757008]
[1730592413996,11.15068608,165.99,165.94,23.776884]
[1730592416493,11.15068608,165.98,165.94,23.776884]
[1730592416795,11.15068608,165.96,165.91,11.15068608]
[1730592417089,11.15068608,165.95,165.9,11.45444308]
[1730592418095,11.15068608,165.96,165.92,23.776884]
[1730592419490,11.15068608,165.97,165.92,23.776884]
[1730592420291,11.15068608,165.95,165.92,23.776884]
[1730592420497,11.15068608,165.95,165.9,24.080641]
[1730592420798,11.15068608,165.95,165.9,35.23132708]
[1730592422271,11.15068608,165.95,165.9,24.080641]
[1730592422489,6.0256,165.96,165.9,0.303757]
[1730592422490,11.15068608,165.94,165.9,0.303757]
[1730592423572,11.15068608,165.93,165.9,0.303757]
[1730592424084,11.15068608,165.92,165.9,0.303757]
[1730592425294,11.15068608,165.93,165.9,0.303757]
[1730592427792,11.15068608,165.92,165.9,0.303757]
[1730592428097,11.15068608,165.93,165.9,0.303757]
[1730592428485,11.15068608,165.92,165.9,0.303757]
[1730592429491,11.15068608,165.93,165.9,0.303757]
[1730592430195,11.15068608,165.92,165.9,0.303757]
[1730592430902,11.15068608,165.93,165.9,0.303757]
[1730592432220,17.17738608,165.93,165.9,0.303757]
[1730592432408,11.15068608,165.92,165.9,0.303757]
[1730592432719,11.15068608,165.93,165.9,0.303757]
[1730592433924,11.15068608,165.92,165.9,0.303757]
[1730592442621,11.15068608,165.91,165.9,0.303757]
[1730592445402,17.17798608,165.91,165.9,0.303757]
[1730592447019,11.15068608,165.91,165.9,0.303757]
[1730592448702,17.17798608,165.91,165.9,0.303757]
[1730592465610,17.27798608,165.91,165.9,0.303757]
[1730592466507,0.1,165.87,165.81,0.303757]
[1730592466723,11.15068608,165.82,165.81,0.303757]
[1730592471011,11.15068608,165.84,165.81,0.303757]
[1730592471218,11.15068608,165.85,165.81,0.303757]
[1730592471909,11.15068608,165.84,165.81,0.303757]
[1730592472104,11.15068608,165.83,165.81,0.303757]
[1730592472933,11.15068608,165.84,165.81,0.303757]
[1730592476735,11.15068608,165.86,165.81,0.303757]
[1730592476913,6.0288,165.87,165.81,0.303757]
[1730592476914,11.15068608,165.84,165.81,0.303757]
[1730592479824,11.15068608,165.83,165.81,0.303757]
[1730592481043,11.15068608,165.82,165.81,0.303757]
[1730592481430,11.15068608,165.82,165.73,0.303757]
[1730592481631,11.15068608,165.75,165.73,0.303757]
[1730592482321,11.15068608,165.77,165.73,0.303757]
[1730592483323,11.15068608,165.77,165.73,24.080641]
[1730592484244,6.032,165.79,165.73,24.080641]
[1730592484245,11.15068608,165.79,165.73,35.23132708]
[1730592484623,11.15068608,165.78,165.73,35.23132708]
[1730592485442,11.15068608,165.79,165.73,35.23132708]
[1730592486341,11.15068608,165.78,165.73,35.23132708]
[1730592488027,11.15068608,165.79,165.74,11.15068608]
[1730592488230,11.15068608,165.79,165.75,23.776884]
[1730592492126,11.15068608,165.76,165.73,0.303757]
[1730592493250,11.15068608,165.76,165.73,24.080641]
[1730592493628,11.15068608,165.77,165.73,24.080641]
[1730592494457,11.15068608,165.78,165.73,35.23132708]
[1730592494838,11.15068608,165.8,165.74,11.15068608]
[1730592495036,11.15068608,165.8,165.75,23.776884]
[1730592497725,11.15068608,165.82,165.77,11.15068608]
[1730592497929,11.15068608,165.83,165.78,11.15068608]
[1730592498157,11.15068608,165.84,165.79,11.15068608]
[1730592500844,11.15068608,165.86,165.8,11.15068608]
[1730592501654,11.15068608,165.86,165.81,34.92757008]
[1730592501835,17.17948608,165.87,165.81,34.92757008]
[1730592503851,11.15068608,165.85,165.81,23.776884]
[1730592504070,11.15068608,165.86,165.81,11.15068608]
[1730592504235,11.15068608,165.88,165.83,23.776884]
[1730592504435,11.15068608,165.88,165.83,34.92757008]
[1730592504747,11.15068608,165.89,165.84,11.15068608]
[1730592506365,11.15068608,165.88,165.83,34.92757008]
[1730592506935,11.15068608,165.89,165.84,11.15068608]
[1730592508854,11.15068608,165.88,165.83,34.92757008]
[1730592515255,11.15068608,165.86,165.83,23.776884]
[1730592515562,6.0277,165.9,165.78,16.4881]
[1730592515563,11.15068608,165.87,165.82,23.776884]
[1730592515777,11.15068608,165.87,165.82,34.92757008]